Cogmind - Beta 13 @@@ ROGUE MODE // 2024.04.14 @ 19:13:15 Player: LEWiKK Result: Destroyed by G-50 Soldier with Heavy Laser Performance ------------- Evolutions (4) 2000 Regions Visited (4) 800 Robots Destroyed (39) 195 Value Destroyed (1467) 1467 Prototype IDs (3) 60 Alien Tech Used (0) 0 Bonus (0) 0 TOTAL SCORE: 4522 Bonus ------- None Cogmind --------- Core Integrity 0/850 Matter 100/300 Energy 99/100 System Corruption 6% Temperature Cool (9) Movement Core (50) Location -6/Factory Parts ------- > --- POWER (1) -------- (None) > --- PROPULSION (4) --- (None) > --- UTILITY (7) ------ (None) > --- WEAPON (3) ------- (None) > --- INVENTORY (5) ---- (None) Peak State ------------ > --- POWER ------------ Nuclear-Angular Core > --- PROPULSION ------- Aluminum Leg Aluminum Leg Aluminum Leg Armored-Compact Exoskeleton > --- UTILITY ---------- Armored Scrap Engine Advanced Terrain Scanner Kinecellerator Hardened Heavy Armor Plating > --- WEAPON ----------- Barrage Gun Charged Ion Construct/G > --- INVENTORY -------- Ion Engine Angular Momentum Engine Particle Gun Grenade Launcher [Rating: 53] Favorites ----------- Power Ion Engine Engine Ion Engine Power Core Constructs Propulsion Aluminum Leg Leg Aluminum Leg Utility Armored Scrap Engine Device Armored Scrap Engine Storage Small Storage Unit Protection Hardened Heavy Armor Plating Weapon Light Assault Rifle Energy Gun Particle Gun Ballistic Gun Light Assault Rifle Launcher Grenade Launcher Build | -11 -10 -10 -8 -6 ------- Run | Yrd Mat Sub Rec Fac Slots Evolved 8 | . . . . 8 Power . | . . . . . Propulsion 2 | . . . . 2 Utility 5 | . . . . 5 Weapon 1 | . . . . 1 Parts Attached 26 | . 11 2 2 11 Power 3 | . 2 . . 1 Engine 3 | . 2 . . 1 Core . | . . . . . Reactor . | . . . . . Propulsion 9 | . 6 1 . 2 Treads . | . . . . . Leg 9 | . 6 1 . 2 Wheel . | . . . . . Hover . | . . . . . Flight . | . . . . . Utility 9 | . 2 . 1 6 Device 6 | . 1 . 1 4 Storage . | . . . . . Processor . | . . . . . Hackware . | . . . . . Protection 3 | . 1 . . 2 Artifact . | . . . . . Weapon 5 | . 1 1 1 2 Energy Gun 2 | . 1 . . 1 Energy Cannon . | . . . . . Ballistic Gun 1 | . . . 1 . Ballistic Cannon . | . . . . . Launcher 2 | . . 1 . 1 Special Weapon . | . . . . . Impact Weapon . | . . . . . Slashing Weapon . | . . . . . Piercing Weapon . | . . . . . Special Melee Weapon . | . . . . . Unidentified Prototypes . | . . . . . Parts Lost 24 | . 6 . 1 17 Power 4 | . 2 . . 2 Propulsion 7 | . 2 . . 5 Utility 6 | . 1 . . 5 Weapon 7 | . 1 . 1 5 Highest Loss Streak 4 | . 3 . 1 4 To Critical Strikes 1 | . . . . 1 Average Slot Usage (%) 75 | . 93 100 84 56 Engine 9 | . 12 14 14 4 Leg 22 | . 28 28 28 15 Wheel 1 | . . . . 2 Device 11 | . 1 14 14 15 Storage 5 | . 14 14 . . Protection 3 | . 9 . . 3 Energy Gun 7 | . 11 12 . 5 Ballistic Gun 10 | . 14 14 26 3 Naked Turns 3 | . . . . 3 Heaviest Build 46 | 12 16 16 14 46 Greatest Support 45 | 20 20 20 20 45 Greatest Overweight (x) 4 | . . . . 4 Average Overweight (x) . | . . . . . Largest Inventory Capacity 8 | 8 8 8 8 5 Average Capacity 6 | 8 8 8 5 5 Most Carried 8 | 6 8 8 7 5 Average Carried 4 | 6 7 7 4 2 Final Capacity 8 | 8 8 8 5 5 Final Carried 8 | 6 8 8 5 . Scrap Engine Consumption 67 | . . . 31 36 Constructs Created 4 | . . . 1 3 Constructs Modified 17 | . . . . 17 Class Distribution -------------------- 90% | Mutant 9% | Scavenger-Mutant Dominant Class ---------------- Mutant | -10/Materials Mutant | -10/Subcaves Mutant | -8/Recycling Mutant | -6/Factory Resources | -11 -10 -10 -8 -6 ----------- Run | Yrd Mat Sub Rec Fac Matter Collected 770 | 165 200 41 116 248 Remotely . | . . . . . Salvage Created 1571 | . 564 146 165 696 Parts 82 | . 38 7 8 29 Haulers Intercepted . | . . . . . Recyclers Shooed 2 | . 1 . . 1 Parts Field Recycled . | . . . . . Retrieved Matter . | . . . . . Parts Self-Destructed 6 | . . 6 . . Prevented . | . . . . . Kills | -11 -10 -10 -8 -6 ------- Run | Yrd Mat Sub Rec Fac Combat Hostiles Destroyed 34 | . 14 5 2 13 Guns 30 | . 14 5 1 10 Cannons 1 | . . . 1 . AOE 2 | . . . . 2 Classes Destroyed 9 | . 1 2 2 4 Worker 3 | . . . . 3 Builder 1 | . . . . 1 Recycler 1 | . . . 1 . Swarmer 3 | . . 3 . . Grunt 22 | . 14 . . 8 Brawler 1 | . . . . 1 Sentry 2 | . . . 2 . Programmer 4 | . . . . 4 Subdweller 2 | . . 2 . . Best Kill Streak 4 | . 2 3 2 4 Combat Bots Only 3 | . 2 3 1 2 Max Kills in Single Turn 2 | . 1 1 1 2 Gunslinging . | . . . . . Exploded 1 | . . . . 1 Melee . | . . . . . Uniques/NPCs Destroyed . | . . . . . Combat | -11 -10 -10 -8 -6 -------- Run | Yrd Mat Sub Rec Fac Hostile Shots Fired 382 | . 82 18 14 268 Missed 112 | . 19 7 4 82 Damage Taken 4459 | . 854 87 144 3374 Core 1016 | . 150 5 . 861 Absorbed by Shields 36 | . . 36 . . Regen/Repaired (Parts) 324 | . . . 60 264 Core Remaining (%) 69 | 100 . . 38 . Volleys Fired 182 | . 65 12 7 98 Largest 2 | . 2 2 2 2 Hottest 113 | . 60 85 86 113 Shots Fired 294 | . 117 20 15 142 Gun 268 | . 117 16 12 123 Cannon 3 | . . . 3 . Launcher 23 | . . 4 . 19 Special . | . . . . . Kinetic 123 | . 65 8 12 38 Thermal 120 | . 52 8 . 60 Explosive 23 | . . 4 . 19 Electromagnetic 28 | . . . 3 25 Robot Hit Streak 14 | . 13 5 14 10 Robot Miss Streak 3 | . 3 1 1 2 Penetration Max . | . . . . . Secondary Targets . | . . . . . Shots Hit Robots 191 | . 82 10 12 87 Core Hits 102 | . 36 9 5 52 Critical Kills 2 | . . 1 . 1 Critical Parts Destroyed . | . . . . . Critical Strikes 3 | . . 1 . 2 Burn 1 | . . . . 1 Destroy 2 | . . 1 . 1 Melee Attacks . | . . . . . Impact . | . . . . . Slashing . | . . . . . Piercing . | . . . . . Sneak Attacks . | . . . . . Combat Hostiles . | . . . . . Follow-up Attacks . | . . . . . Damage Inflicted 3549 | . 792 119 195 2443 Guns 2545 | . 792 119 148 1486 Cannons 47 | . . . 47 . Explosions 957 | . . . . 957 Melee . | . . . . . Ramming . | . . . . . Kinetic 1026 | . 365 28 148 485 Thermal 1340 | . 427 91 . 822 Explosive 957 | . . . . 957 Electromagnetic 226 | . . . 47 179 Impact . | . . . . . Slashing . | . . . . . Piercing . | . . . . . Highest Corruption 6 | . 1 1 1 6 Average Corruption 1 | . 1 1 1 3 Corruption Purged . | . . . . . Corruption Blocked . | . . . . . Effects 49 | . 8 3 8 30 Message Errors 15 | . 1 2 3 9 Matter Fused 14 | . 3 1 2 8 Heat Flow Errors 2 | . 1 . . 1 Energy Discharges 5 | . 3 . 1 1 Parts Rejected 2 | . . . . 2 Parts Fused 1 | . . . . 1 Data Loss (minor) 5 | . . . . 5 Misfires 2 | . . . 1 1 Alerts 2 | . . . 1 1 Weapon Failures 1 | . . . . 1 Overload Shots . | . . . . . Overflow Damage 18 | . . . . 18 Projectiles . | . . . . . Explosions 18 | . . . . 18 Melee . | . . . . . Knockbacks . | . . . . . Impact . | . . . . . Kinetic . | . . . . . Secondary . | . . . . . Self-Inflicted Damage 64 | . . . . 64 Shots 3 | . . . . 3 Rammed . | . . . . . Targets Rammed . | . . . . . Kicked . | . . . . . Crushed . | . . . . . Highest Temperature 454 | . 231 16 72 454 Average Temperature 102 | . 70 5 26 135 Received Heat Transfer 1527 | . 519 24 45 939 Effects 7 | . . . . 7 Energy Bleed 2 | . . . . 2 Interference 4 | . . . . 4 Matter Decay 1 | . . . . 1 Siege Activations . | . . . . . Robots Corrupted . | . . . . . Combat Hostiles . | . . . . . Parts Fried . | . . . . . Impact Corruptions . | . . . . . Robots Melted 1 | . . . . 1 Combat Hostiles 1 | . . . . 1 Parts Melted 4 | . . . . 4 Heat Transferred 2714 | . 975 222 . 1517 Parts Sabotaged . | . . . . . Parts Stolen . | . . . . . Parts Stripped . | . . . . . Power Chain Reactions . | . . . . . Alert | -11 -10 -10 -8 -6 ------- Run | Yrd Mat Sub Rec Fac Peak Influence 454 | . 171 . 128 454 Initial 200 | . . . . 200 Average 123 | . 83 . 33 172 Maximum Alert Level 2 | . . . . 2 Low Security (%) 75 | 100 100 . 100 55 Level 1 16 | . . . . 30 Level 2 8 | . . . . 14 Level 3 . | . . . . . Level 4 . | . . . . . Level 5 . | . . . . . High Security . | . . . . . Max Security . | . . . . . Squads Dispatched 17 | . 4 . . 13 Investigation 5 | . 3 . . 2 Extermination 5 | . . . . 5 Reinforcement 4 | . 1 . . 3 Assault . | . . . . . Garrison 3 | . . . . 3 Intercept . | . . . . . Searches Triggered . | . . . . . Construction Impeded 2 | . . . . 2 Haulers Reinforced . | . . . . . Active Scanning Responses . | . . . . . Cargo Convoy Interrupts . | . . . . . Stealth | -11 -10 -10 -8 -6 --------- Run | Yrd Mat Sub Rec Fac Distress Signals 2 | . 1 . . 1 Communications Jammed . | . . . . . Distress Signals . | . . . . . Times Spotted 79 | . 31 10 2 36 Peak Tracking Total 11 | . 5 5 1 11 Tactical Retreats 8 | . 2 2 . 4 Traps | -11 -10 -10 -8 -6 ------- Run | Yrd Mat Sub Rec Fac Traps Triggered 2 | . 1 . . 1 Indirectly . | . . . . . Trap Hack Attempts . | . . . . . Triggered . | . . . . . Disarmed . | . . . . . Reprogrammed . | . . . . . Reused . | . . . . . Traps Extracted . | . . . . . Installed . | . . . . . Triggered . | . . . . . Machines | -11 -10 -10 -8 -6 ---------- Run | Yrd Mat Sub Rec Fac Machines Disabled 5 | . . . . 5 Max in Single Turn 3 | . . . . 3 Garrison Access 1 | . . . . 1 Machines Repaired . | . . . . . Machines Dismantled . | . . . . . Machines Sabotaged . | . . . . . Overloaded Fab Kills . | . . . . . Hacking | -11 -10 -10 -8 -6 --------- Run | Yrd Mat Sub Rec Fac Machines Accessed 23 | . 7 . 10 6 Terminals 16 | . 7 . 6 3 Fabricators 1 | . . . . 1 Repair Stations . | . . . . . Recycling Units 5 | . . . 4 1 Scanalyzers . | . . . . . Garrison Access 1 | . . . . 1 Total Hacks 61 | . 23 . 30 8 Successful 30 | . 12 . 15 3 Failed 31 | . 11 . 15 5 Catastrophic 4 | . 1 . 1 2 Database Lockouts . | . . . . . Manual 33 | . 11 . 17 5 Terminals 44 | . 23 . 17 4 Fabricators 1 | . . . . 1 Repair Stations . | . . . . . Recycling Units 14 | . . . 13 1 Scanalyzers . | . . . . . Garrison Access 2 | . . . . 2 Terminal Hacks 12 | . 7 . 4 1 Record 1 | . 1 . . . Robot Analysis 2 | . 2 . . . Open DSF 1 | . . . . 1 Emergency Access Points 2 | . 1 . 1 . Locate Traps 2 | . 2 . . . Registered Components 1 | . . . 1 . Zone Layout 3 | . 1 . 2 . Fabricator Hacks 1 | . . . . 1 Network Status 1 | . . . . 1 Repair Station Hacks . | . . . . . Recycling Unit Hacks 2 | . . . 2 . Retrieve Components 2 | . . . 2 . Scanalyzer . | . . . . . Garrison Access Hacks . | . . . . . Unauthorized Hacks 15 | . 5 . 9 1 Terminals 11 | . 5 . 6 . Botnet 10 | . 5 . 5 . Detonate 1 | . . . 1 . Fabricators . | . . . . . Repair Stations . | . . . . . Recycling Units 3 | . . . 3 . Tunnel 3 | . . . 3 . Scanalyzers . | . . . . . Garrison Access 1 | . . . . 1 Jam 1 | . . . . 1 Data Cores Recovered . | . . . . . Used . | . . . . . Hacking Detections 21 | . 7 . 9 5 Full Trace Events 5 | . 4 . 1 . Feedback Events . | . . . . . Feedback Blocked . | . . . . . Robot Schematics Acquired . | . . . . . Robots Built . | . . . . . Authchips . | . . . . . Time . | . . . . . Total Robot Build Rating . | . . . . . Part Schematics Acquired . | . . . . . Parts Built . | . . . . . Authchips . | . . . . . Time . | . . . . . Total Part Build Rating . | . . . . . Parts Repaired . | . . . . . Time . | . . . . . Parts Recycled . | . . . . . Recycled Matter . | . . . . . Retrieved Matter . | . . . . . Retrieved Components . | . . . . . Parts Scanalyzed . | . . . . . Part Schematics Acquired . | . . . . . Parts Damaged . | . . . . . Bothacking | -11 -10 -10 -8 -6 ------------ Run | Yrd Mat Sub Rec Fac Used RIF Installer . | . . . . . Robots Hacked . | . . . . . Non-combat . | . . . . . Combat . | . . . . . Robot Hacks Applied . | . . . . . Relay Couplers Released . | . . . . . Fabnet Peak Effective % . | . . . . . Robots Rewired . | . . . . . Allies Hacked . | . . . . . Hacks Repelled . | . . . . . Allies | -11 -10 -10 -8 -6 -------- Run | Yrd Mat Sub Rec Fac Total Allies . | . . . . . Largest Group . | . . . . . Highest-Rated Group . | . . . . . Highest-Rated Ally . | . . . . . Total Orders . | . . . . . Ally Attacks . | . . . . . Total Damage . | . . . . . Kills . | . . . . . Allies Corrupted . | . . . . . Allies Melted . | . . . . . Intel | -11 -10 -10 -8 -6 ------- Run | Yrd Mat Sub Rec Fac Robot Analysis Total 2 | . 2 . . . Derelict Logs Recovered 1 | . . 1 . . Drone Launches . | . . . . . Drone Recoveries . | . . . . . Exploration | -11 -10 -10 -8 -6 ------------- Run | Yrd Mat Sub Rec Fac Turns Passed 5636 | 30 1307 834 804 2661 Spaces Moved 3219 | 26 656 628 608 1301 Core 129 | . . . . 129 Treads 46 | . . . . 46 Legs 2767 | 26 656 628 608 849 Wheels 277 | . . . . 277 Hover . | . . . . . Flight . | . . . . . Fastest Speed 50 | 120 120 120 120 50 Average Speed 124 | 120 120 120 120 132 Slowest Speed 250 | 120 120 120 120 250 Overloaded Moves . | . . . . . Propulsion Burnouts . | . . . . . Robots Hopped . | . . . . . Cave-ins Triggered . | . . . . . Exploration Rate (%) 51 | 3 99 37 96 24 Regions Visited 4 Branch Regions 2 Pre-discovered Areas 3 | . . . 3 . Known Exits Taken . | . . . . . Unknown Exits Taken 4 | 1 1 1 1 . Scrap Searched 6 | . . 6 . . Spaces Dug 11 | . . . . 11 Terrain Destroyed 88 | . . 31 . 57 Melee . | . . . . . Projectile . | . . . . . AOE 88 | . . 31 . 57 Terrain Rammed . | . . . . . Walls Destroyed . | . . . . . Machines Disabled . | . . . . . Actions | -11 -10 -10 -8 -6 --------- Run | Yrd Mat Sub Rec Fac Total 4577 | 25 1085 689 673 2105 Wait 1088 | . 317 46 47 678 Move 3215 | 25 655 627 607 1301 Hop . | . . . . . Pick Up 34 | . 21 1 3 9 Fast Attach . | . . . . . Attach 19 | . 7 . 1 11 Detach 2 | . . . . 2 Swap 7 | . 4 2 1 . Drop 30 | . 16 1 7 6 Fire 182 | . 65 12 7 98 Melee . | . . . . . Ram . | . . . . . Kick . | . . . . . Crush . | . . . . . Escape Stasis . | . . . . . Rewire . | . . . . . Trap . | . . . . . Miscellaneous . | . . . . . Route ------- -11/Scrapyard -10/Materials (discovered 6 exits: [*Mat x3] / [*Min x2] / [*Sub]) -10/Subcaves -8/Recycling -6/Factory History --------- Turn | Location | Event 1 | -11/Scrapyard | Discovered new exit (range 3) 31 | -11/Scrapyard | Entered Materials 313 | -10/Materials | Build established: Mutant 446 | -10/Materials | Discovered new exit (range 15) 609 | -10/Materials | Discovered new exit (range 14) 746 | -10/Materials | Discovered new exit (range 12) 842 | -10/Materials | Discovered new exit (range 14) 943 | -10/Materials | Discovered new exit (range 7) 971 | -10/Materials | Core integrity fell below 50% 1012 | -10/Materials | Lost 3 parts (1p1u1w) 1330 | -10/Materials | Discovered new exit (range 8) 1338 | -10/Materials | Entered Subcaves 1739 | -10/Subcaves | Shifting Twisted Machinery released Mak. Flight Unit 1794 | -10/Subcaves | Shifting Twisted Machinery released Flamer 1890 | -10/Subcaves | Disturbed a concealed Subdweller 2164 | -10/Subcaves | Discovered new exit (range 8) 2172 | -10/Subcaves | Entered Recycling 2174 | -8/Recycling | Found Scrap Engine 2964 | -8/Recycling | Discovered new exit (range 8) 2976 | -8/Recycling | Entered Factory 2976 | -6/Factory | Evolved 8 slots: Propulsion x2, Utility x5, Weapon x1 3361 | -6/Factory | Build established: Scavenger-Mutant 3797 | -6/Factory | Build established: Mutant 3887 | -6/Factory | Spotted B-75 Beast 4749 | -6/Factory | Garrison activated, responded to threat 4851 | -6/Factory | Lost 3 parts (2n1w) 5513 | -6/Factory | Garrison activated, responded to threat 5551 | -6/Factory | Lost 4 parts (1p2n1w) 5554 | -6/Factory | Core integrity fell below 50% 5615 | -6/Factory | Core integrity fell below 20% 5637 | -6/Factory | Destroyed by G-50 Soldier with Heavy Laser Last Messages --------------- Triggered Alarm Trap. An alarm sounds. ALERT: Alarm triggered, dispatching investigation squad. System corrupted: Adv. Weight Redist. System rejected. K-01 Serf cleans the Nuclear Reactor. ALERT: Rogue bot located, Programmers report to Factory Zone 8V. K-01 Serf cleans the Nuclear Reactor. Penetrated by Slug. Arm. Scrap Engine destroyed. Scrap Engine core remains intact and functional. W-25 Informer sends out distress signal. R-10 Processor collects Adv. Weight Redist. System. Critical hit (Burn: +37). System corrupted: Matter fused (-10). Angular Momentum Engine destroyed. WQERNY TLW/MV